Cogmind - Beta 14 @@@ ROGUE MODE // 2024.11.20 @ 10:27:54 Player: Beleaguer Result: Destroyed by X-57 Shotgunner with High-powered Shotgun Performance ------------- Evolutions (2) 1000 Regions Visited (4) 800 Robots Destroyed (28) 140 Value Destroyed (726) 726 Prototype IDs (3) 60 Alien Tech Used (0) 0 Bonus (0) 0 TOTAL SCORE: 2726 Bonus ------- None Cogmind --------- Core Integrity 0/550 Matter 287/300 Energy 100/100 System Corruption 3% Temperature Cool (9) Movement Core (200) Ox3 Location -8/Materials Parts ------- > --- POWER (2) -------- (None) > --- PROPULSION (3) --- (None) > --- UTILITY (4) ------ Improved Heat Sink Medium Storage Unit Utility Shielding > --- WEAPON (2) ------- (None) > --- INVENTORY (10) --- Advanced Weight Redist. System Launcher Guidance Computer Peak State ------------ > --- POWER ------------ Ion Engine Light Nuclear Core > --- PROPULSION ------- Aluminum Leg Carbon-fiber Leg VSS Leg > --- UTILITY ---------- Cryofiber Web Improved Heat Sink Medium Storage Unit Improved Light Armor Plating > --- WEAPON ----------- EM Pulse Gun Beam Rifle > --- INVENTORY -------- Improved Heat Sink Advanced Weight Redist. System Launcher Guidance Computer Utility Shielding Medium Reactive Plating Advanced Beam Rifle Minigun Gauss Rifle Proton Missile Launcher [Rating: 27] Favorites ----------- Power Ion Engine Engine Ion Engine Power Core Light Nuclear Core Propulsion Aluminum Leg Leg Aluminum Leg Utility Medium Storage Unit Device Improved Heat Sink Storage Medium Storage Unit Processor Signal Interpreter Protection Improved Light Armor Plating Weapon EM Pulse Gun Energy Gun EM Pulse Gun Energy Cannon Beam Cannon Ballistic Gun Light Assault Rifle Launcher Proton Missile Launcher Build | -11 -10 -9 -9 -8 ------- Run | Yrd Mat Mat Min Mat Slots Evolved 4 | . . 2 . 2 Power 1 | . . . . 1 Propulsion 1 | . . 1 . . Utility 2 | . . 1 . 1 Weapon . | . . . . . Parts Attached 35 | 7 3 3 4 18 Power 4 | 1 . . . 3 Engine 2 | 1 . . . 1 Core 2 | . . . . 2 Reactor . | . . . . . Propulsion 8 | 2 . 1 2 3 Treads . | . . . . . Leg 8 | 2 . 1 2 3 Wheel . | . . . . . Hover . | . . . . . Flight . | . . . . . Utility 13 | 2 2 2 1 6 Device 5 | 1 . 1 . 3 Storage 2 | 1 1 . . . Processor 2 | . 1 1 . . Hackware . | . . . . . Protection 4 | . . . 1 3 Artifact . | . . . . . Weapon 10 | 2 1 . 1 6 Energy Gun 5 | 1 . . 1 3 Energy Cannon 1 | . 1 . . . Ballistic Gun 3 | 1 . . . 2 Ballistic Cannon . | . . . . . Launcher 1 | . . . . 1 Special Weapon . | . . . . . Impact Weapon . | . . . . . Slashing Weapon . | . . . . . Piercing Weapon . | . . . . . Special Melee Weapon . | . . . . . Unidentified Prototypes 1 | . . . . 1 Corrupted Parts 1 | . . . . 1 System Corruption 2 | . . . . 2 Parts Lost 21 | . . . 2 19 Power 4 | . . . . 4 Propulsion 5 | . . . 1 4 Utility 5 | . . . 1 4 Weapon 7 | . . . . 7 Highest Loss Streak 14 | . . . 1 14 To Critical Strikes 1 | . . . . 1 Average Slot Usage (%) 97 | . 100 100 98 94 Engine 12 | . 14 11 11 13 Core 1 | . . . . 2 Leg 28 | . 28 33 32 24 Device 11 | . 5 11 6 15 Storage 10 | . 14 11 11 9 Processor 6 | . 8 11 11 2 Protection 4 | . . . 3 9 Energy Gun 8 | . 10 . 10 11 Energy Cannon 6 | . 3 11 11 5 Ballistic Gun 6 | . 14 11 . . Peak Build Rating 27 | 7 9 10 16 27 Average Rating 14 | 4 8 9 11 22 On Entrance 8 | . 7 9 9 16 Naked Turns . | . . . . . Heaviest Build 35 | 14 19 20 27 35 Greatest Support 37 | 20 20 30 35 37 Greatest Overweight (x) 11 | 2 . . 1 11 Average Overweight (x) . | . . . . . Largest Inventory Capacity 10 | 8 10 10 10 10 Average Capacity 9 | 7 9 10 10 10 Most Carried 10 | 3 10 9 10 10 Average Carried 7 | 1 6 7 6 9 Final Capacity 10 | 8 10 10 10 10 Final Carried 10 | 2 10 7 10 2 Class Distribution -------------------- 90% | Mutant 9% | Scavenger-Mutant Dominant Class ---------------- Mutant | -10/Materials Mutant | -9/Materials Mutant | -9/Mines Mutant | -8/Materials Resources | -11 -10 -9 -9 -8 ----------- Run | Yrd Mat Mat Min Mat Matter Collected 547 | 272 41 44 29 161 Remotely 116 | 106 10 . . . Salvage Created 968 | 68 199 162 42 497 Parts 58 | 4 17 7 7 23 Haulers Intercepted . | . . . . . Recyclers Shooed . | . . . . . Parts Field Recycled . | . . . . . Retrieved Matter . | . . . . . Parts Self-Destructed . | . . . . . Prevented . | . . . . . Kills | -11 -10 -9 -9 -8 ------- Run | Yrd Mat Mat Min Mat Combat Hostiles Destroyed 21 | . 5 3 3 10 Guns 13 | . 4 . . 9 Cannons 8 | . 1 3 3 1 Classes Destroyed 7 | 1 3 . . 3 Worker 2 | . . . . 2 Recycler 2 | 1 . 1 . . Operator 1 | . . . . 1 Watcher 2 | . 1 . . 1 Swarmer 8 | . 2 . 3 3 Grunt 12 | . 3 3 . 6 Hunter 1 | . . . . 1 Best Kill Streak 3 | 1 3 3 3 3 Combat Bots Only 3 | . 2 2 3 3 Max Kills in Single Turn 2 | 1 1 1 1 2 Gunslinging . | . . . . . Exploded . | . . . . . Melee . | . . . . . Uniques/NPCs Destroyed . | . . . . . Combat | -11 -10 -9 -9 -8 -------- Run | Yrd Mat Mat Min Mat Hostile Shots Fired 402 | . 25 12 37 328 Missed 135 | . 4 4 7 120 Damage Taken 2961 | . 195 87 290 2389 Core 645 | . 39 12 41 553 Absorbed by Shields . | . . . . . Redirected to Shielding 37 | . . . . 37 Ignored by Resistances 185 | . . . . 185 Core Remaining (%) 90 | 100 84 . 86 . Volleys Fired 99 | 2 11 22 9 55 Largest 2 | 2 2 2 2 2 Hottest 100 | 60 80 80 100 100 Shots Fired 190 | 4 22 44 18 102 Gun 140 | 4 21 22 9 84 Cannon 45 | . 1 22 9 13 Launcher 5 | . . . . 5 Special . | . . . . . Kinetic 49 | 2 11 22 6 8 Thermal 80 | . 1 22 9 48 Explosive . | . . . . . Electromagnetic 61 | 2 10 . 3 46 Robot Hit Streak 14 | 1 8 9 5 14 Robot Miss Streak 10 | 1 2 10 3 4 Penetration Max . | . . . . . Secondary Targets 2 | . 1 . . 1 Max Gunslinging Chain 1 | . 1 . . 1 Shots Hit Robots 111 | 2 13 20 9 67 Core Hits 53 | 1 8 5 4 35 Critical Kills . | . . . . . Critical Parts Destroyed . | . . . . . Critical Strikes 3 | . 1 . . 2 Burn 2 | . . . . 2 Corrupt 1 | . 1 . . . Melee Attacks . | . . . . . Impact . | . . . . . Slashing . | . . . . . Piercing . | . . . . . Sneak Attacks . | . . . . . Combat Hostiles . | . . . . . Follow-up Attacks . | . . . . . Damage Inflicted 2160 | 28 159 264 119 1590 Guns 1192 | 28 142 91 31 900 Cannons 400 | . 17 173 88 122 Explosions 543 | . . . . 543 Melee . | . . . . . Ramming 25 | . . . . 25 Kinetic 331 | . 52 91 31 157 Thermal 981 | . 17 173 88 703 Explosive . | . . . . . Electromagnetic 823 | 28 90 . . 705 Impact . | . . . . . Slashing . | . . . . . Piercing . | . . . . . Highest Corruption 3 | . . . . 3 Average Corruption 1 | . . . . 1 Corruption Purged . | . . . . . Corruption Blocked . | . . . . . Effects 2 | . . . . 2 Matter Fused 1 | . . . . 1 Heat Flow Errors 1 | . . . . 1 Overload Shots . | . . . . . Overflow Damage 16 | . . . . 16 Projectiles . | . . . . . Explosions 16 | . . . . 16 Melee . | . . . . . Knockbacks . | . . . . . Impact . | . . . . . Kinetic . | . . . . . Secondary . | . . . . . Self-Inflicted Damage 64 | . . . . 64 Shots 2 | . . . . 2 Rammed . | . . . . . Targets Rammed 4 | . . 1 . 3 Kicked 4 | . . 1 . 3 Crushed . | . . . . . Highest Temperature 180 | 10 46 170 133 180 Average Temperature 59 | 7 23 80 63 40 Received Heat Transfer 708 | . 30 48 . 630 Siege Activations . | . . . . . Robots Corrupted . | . . . . . Combat Hostiles . | . . . . . Parts Fried 3 | . . . . 3 Impact Corruptions . | . . . . . Robots Melted . | . . . . . Combat Hostiles . | . . . . . Parts Melted 1 | . . . . 1 Heat Transferred 2348 | . 37 370 185 1756 Parts Sabotaged . | . . . . . Parts Stolen . | . . . . . Parts Stripped . | . . . . . Power Chain Reactions 3 | . . . . 3 Alert | -11 -10 -9 -9 -8 ------- Run | Yrd Mat Mat Min Mat Peak Influence 197 | 5 197 115 80 177 Initial 27 | . 3 25 5 27 Average 73 | 3 143 34 68 68 Maximum Alert Level . | . . . . . Low Security (%) 100 | 100 100 100 100 100 Level 1 . | . . . . . Level 2 . | . . . . . Level 3 . | . . . . . Level 4 . | . . . . . Level 5 . | . . . . . High Security . | . . . . . Max Security . | . . . . . Squads Dispatched 5 | . 1 2 . 2 Investigation 1 | . . 1 . . Extermination . | . . . . . Reinforcement 4 | . 1 1 . 2 Assault . | . . . . . Garrison . | . . . . . Intercept . | . . . . . Searches Triggered . | . . . . . Construction Impeded . | . . . . . Haulers Reinforced . | . . . . . Active Scanning Responses . | . . . . . Cargo Convoy Interrupts . | . . . . . Stealth | -11 -10 -9 -9 -8 --------- Run | Yrd Mat Mat Min Mat Distress Signals 7 | . 3 2 . 2 Communications Jammed . | . . . . . Distress Signals . | . . . . . Times Spotted 54 | . 8 10 3 33 Peak Tracking Total 8 | . 5 5 3 8 Tactical Retreats 3 | . 2 . . 1 Traps | -11 -10 -9 -9 -8 ------- Run | Yrd Mat Mat Min Mat Traps Triggered 2 | . . . 1 1 Indirectly . | . . . . . Trap Hack Attempts . | . . . . . Triggered . | . . . . . Disarmed . | . . . . . Reprogrammed . | . . . . . Reused . | . . . . . Traps Extracted . | . . . . . Installed . | . . . . . Triggered . | . . . . . Machines | -11 -10 -9 -9 -8 ---------- Run | Yrd Mat Mat Min Mat Machines Disabled 1 | . . 1 . . Max in Single Turn 1 | . . 1 . . Machines Repaired . | . . . . . Machines Dismantled . | . . . . . Machines Sabotaged . | . . . . . Overloaded Fab Kills . | . . . . . Hacking | -11 -10 -9 -9 -8 --------- Run | Yrd Mat Mat Min Mat Machines Accessed 8 | . 3 1 1 3 Terminals 5 | . 2 1 . 2 Fabricators . | . . . . . Repair Stations . | . . . . . Recycling Units 2 | . 1 . . 1 Scanalyzers . | . . . . . Garrison Access . | . . . . . Total Hacks 19 | . 8 4 1 6 Successful 9 | . 4 2 1 2 Failed 10 | . 4 2 . 4 Catastrophic 2 | . 2 . . . Database Lockouts . | . . . . . Manual 1 | . 1 . . . Terminals 14 | . 5 4 . 5 Fabricators . | . . . . . Repair Stations . | . . . . . Recycling Units 4 | . 3 . . 1 Scanalyzers . | . . . . . Garrison Access . | . . . . . Terminal Hacks 7 | . 3 2 1 1 Prototype ID Bank 1 | . . 1 . . Open Door 1 | . . . 1 . Alert Level 1 | . . . . 1 Locate Traps 1 | . . 1 . . Surveillance Status 1 | . 1 . . . Reinforcement Status 1 | . 1 . . . Zone Layout 1 | . 1 . . . Fabricator Hacks . | . . . . . Repair Station Hacks . | . . . . . Recycling Unit Hacks 2 | . 1 . . 1 Report Inventory 2 | . 1 . . 1 Scanalyzer . | . . . . . Garrison Access Hacks . | . . . . . Unauthorized Hacks . | . . . . . Terminals . | . . . . . Fabricators . | . . . . . Repair Stations . | . . . . . Recycling Units . | . . . . . Scanalyzers . | . . . . . Garrison Access . | . . . . . Data Cores Recovered . | . . . . . Used . | . . . . . Hacking Detections 6 | . 3 1 . 2 Full Trace Events 1 | . . 1 . . Feedback Events . | . . . . . Feedback Blocked . | . . . . . Robot Schematics Acquired . | . . . . . Robots Built . | . . . . . Authchips . | . . . . . Time . | . . . . . Total Robot Build Rating . | . . . . . Part Schematics Acquired . | . . . . . Parts Built . | . . . . . Authchips . | . . . . . Time . | . . . . . Total Part Build Rating . | . . . . . Parts Repaired . | . . . . . Time . | . . . . . Parts Recycled . | . . . . . Recycled Matter . | . . . . . Retrieved Matter . | . . . . . Retrieved Components . | . . . . . Parts Scanalyzed . | . . . . . Part Schematics Acquired . | . . . . . Parts Damaged . | . . . . . Bothacking | -11 -10 -9 -9 -8 ------------ Run | Yrd Mat Mat Min Mat Used RIF Installer . | . . . . . Robots Hacked . | . . . . . Non-combat . | . . . . . Combat . | . . . . . Robot Hacks Applied . | . . . . . Relay Couplers Released . | . . . . . Fabnet Peak Effective % . | . . . . . Robots Rewired . | . . . . . Allies Hacked . | . . . . . Hacks Repelled . | . . . . . Allies | -11 -10 -9 -9 -8 -------- Run | Yrd Mat Mat Min Mat Total Allies . | . . . . . Largest Group . | . . . . . Highest-Rated Group . | . . . . . Highest-Rated Ally . | . . . . . Total Orders . | . . . . . Ally Attacks . | . . . . . Total Damage . | . . . . . Kills . | . . . . . Allies Corrupted . | . . . . . Allies Melted . | . . . . . Intel | -11 -10 -9 -9 -8 ------- Run | Yrd Mat Mat Min Mat Robot Analysis Total . | . . . . . Derelict Logs Recovered . | . . . . . Drone Launches . | . . . . . Drone Recoveries . | . . . . . Exploration | -11 -10 -9 -9 -8 ------------- Run | Yrd Mat Mat Min Mat Turns Passed 2005 | 83 427 459 195 841 Spaces Moved 1250 | 51 294 314 101 490 Core 24 | 15 . . . 9 Treads . | . . . . . Legs 1226 | 36 294 314 101 481 Wheels . | . . . . . Hover . | . . . . . Flight . | . . . . . Fastest Speed 50 | 50 120 120 120 110 Average Speed 122 | 120 120 120 153 119 Slowest Speed 600 | 150 120 120 190 600 Overloaded Moves . | . . . . . Propulsion Burnouts . | . . . . . Robots Hopped . | . . . . . Cave-ins Triggered . | . . . . . Exploration Rate (%) 25 | 5 40 26 25 32 Regions Visited 4 Branch Regions 1 Pre-discovered Areas . | . . . . . Known Exits Taken 2 | . . 1 1 . Unknown Exits Taken 2 | 1 1 . . . Scrap Searched . | . . . . . Spaces Dug . | . . . . . Terrain Destroyed 7 | . . . . 7 Melee . | . . . . . Projectile . | . . . . . AOE 7 | . . . . 7 Terrain Rammed . | . . . . . Walls Destroyed . | . . . . . Machines Disabled . | . . . . . Actions | -11 -10 -9 -9 -8 --------- Run | Yrd Mat Mat Min Mat Total 1544 | 68 350 357 123 646 Wait 94 | . 21 17 1 55 Move 1246 | 50 293 313 100 490 Hop . | . . . . . Pick Up 46 | 9 15 . 7 15 Fast Attach . | . . . . . Attach 26 | 7 . 3 2 14 Detach . | . . . . . Swap 9 | . 3 . 2 4 Drop 20 | . 7 1 2 10 Fire 99 | 2 11 22 9 55 Melee . | . . . . . Ram . | . . . . . Kick 4 | . . 1 . 3 Crush . | . . . . . Escape Stasis . | . . . . . Rewire . | . . . . . Trap . | . . . . . Miscellaneous . | . . . . . Route ------- -11/Scrapyard -10/Materials (discovered 2 exits: *Mat / [*Min]) -9/Materials -9/Mines -8/Materials History --------- Turn | Location | Event 26 | -11/Scrapyard | Discovered new exit (range 15) 84 | -11/Scrapyard | Entered Materials 312 | -10/Materials | Build established: Mutant 336 | -10/Materials | Discovered new exit (range 7) 377 | -10/Materials | Discovered new exit (range 3) 511 | -10/Materials | Entered another Materials area 511 | -9/Materials | Evolved 2 slots: Propulsion x1, Utility x1 886 | -9/Materials | Discovered new exit (range 14) 925 | -9/Materials | Identified exit to Mines 970 | -9/Materials | Entered Mines 1081 | -9/Mines | Met a Derelict who couldn't figure out how to use a Trap Extractor 1143 | -9/Mines | Discovered new exit (range 5) 1163 | -9/Mines | Identified exit to Materials 1165 | -9/Mines | Entered Materials 1165 | -8/Materials | Evolved 2 slots: Power x1, Utility x1 1960 | -8/Materials | Core integrity fell below 50% 1990 | -8/Materials | Core integrity fell below 20% 1992 | -8/Materials | Lost 14 parts (2p4n3u5w) 2006 | -8/Materials | Destroyed by X-57 Shotgunner with High-powered Shotgun Last Messages --------------- 01991_ K-01 Serf collects debris. 01991_ U-05 Engineer lays Concrete. 01992_ K-01 Serf collects debris. 01993_ U-05 Engineer lays Concrete. 01993_ K-01 Serf destroyed. 01994_ U-05 Engineer lays Concrete. 01995_ K-01 Serf collects debris. 01995_ U-05 Engineer lays Concrete. 01997_ Acquired Corrupted Particle Gun. 01998_ U-05 Engineer lays Concrete. 01998_ Minigun destroyed. 01998_ Critical hit (Burn: +37). 01998_ Integrated Corrupted Particle Gun (+2). 01998_ K-01 Serf collects debris. 01999_ U-05 Engineer lays Concrete. 02000_ Particle Gun destroyed. 02000_ K-01 Serf destroyed. 02000_ U-05 Engineer lays Concrete. 02004_ Med. Reactive Plating destroyed. 02004_ U-05 Engineer lays Concrete. Map ----- +----------------------------------------------------+ | ??????????# ##### #????# | | ??????????+ + #????# | | ??????????# #####/## #????# """ " | | ??????????# ! ## #!#????# """ " | | ??????????############ #%#????# """ " | | ?????????????????????# #[#????# | | ?????????????????????# ]=*#%#????# | | ?????????????????????# ]= #!#????# | | ?????????????????????# = #!####?# | | ????????????????????##### %"""### | | ????????????????????# [ % = % | | ????????????????????# =%!%== ########### | | ????????????????????# %a# [ #?????????# | | ????????????????????# #! !!!!#?????????####### | | ????????????????????# #!!!!!!#???????????????? | | ????????????????????# ########???????????????? | | ????????????????????# x #??????????????????????? | | ????????????????????# #??????????????????????? | | ????????????????????# #??????????????????????? | | ????????????????????# * #??????????????????????? | | ????????????????????#=% #??????????????????????? | | ????????????????????# #??????????????????????? | | ????????????????????# =#??????????????????????? | | ????????????????????# u!%#??????????????????????? | | ????????????????????# =%=%#??????????????????????? | | ????????????????????# w @#??????????????????????? | | ????????????????????# s %%#??????????????????????? | | ????????????????????#%%[ a#??????????????????????? | | ????????????????????# s g #??????????????????????? | | ????????????????????# s #??????????????????????? | | ????????????????????# ;??????????????????????? | | ????????????????????# #??????????????????????? | | ????????????????????+^ a#??????????????????????? | | ????????????????????# #??????????????????????? | | ????????????????????# #??????????????????????? | | ????????????????????# #??????????????????????? | | ????????????????????# #??????????????????????? | | ???????????????????? ??????????????????????? | | ???????????????????? #??????????????????????? | | ???????????????????? ???????????????????????? | | ?????????????????????? ???????????????????????? | | ?????????????????????????????????????????????????? | | ?????????????????????????????????????????????????? | | ?????????????????????????????????????????????????? | | ?????????????????????????????????????????????????? | | ?????????????????????????????????????????????????? | | ?????????????????????????????????????????????????? | | ?????????????????????????????????????????????????? | | ?????????????????????????????????????????????????? | | ?????????????????????????????????????????????????? | +----------------------------------------------------+ Best States ------------- Heat Dissipation 59 Energy Generation 19 Energy Capacity 400 Matter Stores 300 Matter Capacity 300 Sight Range 18 Robot Scan Range 14 Terrain Scan Density 10 Base Temperature (-) 100 Armor Coverage 225 Resistance: KI 30 Utility Shielding 33 Evasion (%) 55 Item Schematics ----------------- None Robot Schematics ------------------ None Fabricated ------------ Nothing Alien Tech Used ----------------- None Achievements -------------- Use The Force Challenges ------------ None Game ------ Seed AlphaSpreadActivator Manual? 0 Play Time 01:04:07 Cumulative 108.9 hours Start 2024.11.19 @ 20:10:43 End 2024.11.20 @ 10:27:54 Sessions 1 Manual Loads 0 Difficulty Rogue Special Mode None Game No. 33 Rogue 26 Adventurer 7 Explorer 0 Win Type - Total 0 Types 0/0/0/0/0/0/0/0/0 Lore% 15 Gallery% 26 Achievement% 20 Wizard Run 0 Options --------- Layout 1 ASCII 0 Keyboard 0 Movement Arrows Keybinds 0 Fullscreen 1 Font 16/SmallcapsGlow Map View 50x40 Zoom Use 0% Tactical HUD 1 Map Filters NONE Filters NONE Steam SD RUN: f46b99dc-401b-4dc0-ac44-9bb49fce1f09